fUSD/lending_fUSD_20251006
["ID","MTS","AMOUNT","RATE_DAILY","PERIOD"]
[389568733,1759722632608,-989.26725095,0.00014817,2]
[389568735,1759722632617,-300.0,0.00014836,2]
[389568738,1759722632631,-874.98903889,0.00014836,2]
[389568740,1759722632641,-500.0,0.00014836,2]
[389568742,1759722632651,-626.4,0.00014836,2]
[389568744,1759722632660,-300.0,0.00014836,2]
[389568745,1759722632670,-2000.0,0.00014836,2]
[389568746,1759722632679,-300.0,0.00014836,2]
[389568747,1759722632689,-195.0,0.00014836,2]
[389568748,1759722632698,-2000.0,0.00014836,2]
[389568749,1759722632708,-302.27132399,0.00014836,2]
[389568750,1759722632718,-195.0,0.00014836,2]
[389568751,1759722632728,-300.0,0.00014836,2]
[389568752,1759722632738,-300.0,0.00014836,2]
[389568753,1759722632747,-168.0,0.00014861,2]
[389568754,1759722632756,-152.6050414,0.00014862,2]
[389568755,1759722632766,-161.15350971,0.00014862,2]
[389568756,1759722632776,-500.0,0.00014862,2]
[389568757,1759722632785,-629.79472893,0.00014862,2]
[389568758,1759722632794,-500.0,0.00014862,2]
[389568759,1759722632804,-500.0,0.00014862,2]
[389568760,1759722632814,-159.46827941,0.00014862,2]
[389568761,1759722632824,-220.99626486,0.00014862,2]
[389568762,1759722632834,-500.0,0.00014862,2]
[389568763,1759722632843,-601.3376128,0.00014862,2]
[389568764,1759722632854,-500.0,0.00014862,2]
[389568765,1759722632863,-500.0,0.00014862,2]
[389568766,1759722632873,-203.05725991,0.00014862,2]
[389568767,1759722632883,-500.0,0.00014862,2]
[389568768,1759722632892,-500.0,0.00014862,2]
[389568769,1759722632903,-500.0,0.00014862,2]
[389568770,1759722632913,-500.0,0.00014862,2]
[389568771,1759722632922,-151.0,0.00014862,2]
[389568772,1759722632932,-500.0,0.00014862,2]
[389568773,1759722632941,-500.0,0.00014862,2]
[389568774,1759722632950,-151.0,0.00014862,2]
[389568775,1759722632959,-500.0,0.00014862,2]
[389568776,1759722632969,-151.0,0.00014862,2]
[389568777,1759722632980,-500.0,0.00014862,2]
[389568778,1759722632991,-500.0,0.00014862,2]
[389568779,1759722633000,-151.0,0.00014862,2]
[389568780,1759722633009,-500.0,0.00014862,2]
[389568781,1759722633019,-500.0,0.00014862,2]
[389568782,1759722633030,-151.0,0.00014862,2]
[389568783,1759722633040,-567.72883956,0.00014862,2]
[389568784,1759722633049,-322.6107,0.00014862,2]
[389568785,1759722633061,-504.61875281,0.00014862,2]
[389568786,1759722633070,-151.0,0.00014862,2]
[389568787,1759722633083,-151.0,0.00014862,2]
[389568788,1759722633093,-291.79566579,0.00014862,2]
[389568789,1759722633103,-151.0,0.00014862,2]
[389568790,1759722633112,-151.0,0.00014862,2]
[389568791,1759722633122,-151.0,0.00014862,2]
[389568792,1759722633131,-151.0,0.00014862,2]
[389568793,1759722633140,-184.39222873,0.00014862,2]
[389568794,1759722633150,-200.0,0.00014862,2]
[389568795,1759722633159,-200.0,0.00014862,2]
[389568796,1759722633168,-200.0,0.00014862,2]
[389568797,1759722633178,-200.0,0.00014862,2]
[389568798,1759722633187,-200.0,0.00014862,2]
[389568799,1759722633196,-200.0,0.00014862,2]
[389568800,1759722633206,-200.0,0.00014862,2]
[389568801,1759722633215,-200.0,0.00014862,2]
[389568802,1759722633225,-201.4930451,0.00014862,2]
[389568803,1759722633235,-200.0,0.00014862,2]
[389568804,1759722633245,-200.0,0.00014862,2]
[389568805,1759722633254,-200.0,0.00014862,2]
[389568806,1759722633263,-200.0,0.00014862,2]
[389568807,1759722633275,-200.0,0.00014862,2]
[389568808,1759722633284,-200.0,0.00014862,2]
[389568809,1759722633294,-166.84005463,0.00014862,2]
[389568810,1759722633304,-266.27797195,0.00014862,2]
[389568811,1759722633313,-200.0,0.00014862,2]
[389568812,1759722633324,-200.0,0.00014862,2]
[389568813,1759722633334,-200.0,0.00014862,2]
[389568814,1759722633343,-200.0,0.00014862,2]
[389568815,1759722633353,-200.0,0.00014862,2]
[389568816,1759722633362,-208.84769071,0.00014862,2]
[389568817,1759722633371,-304.96171764,0.00014862,2]
[389568818,1759722633380,-200.0,0.00014862,2]
[389568819,1759722633390,-200.0,0.00014862,2]
[389568820,1759722633399,-200.0,0.00014862,2]
[389568821,1759722633408,-200.0,0.00014862,2]
[389568822,1759722633418,-200.0,0.00014862,2]
[389568823,1759722633427,-200.0,0.00014862,2]
[389568824,1759722633437,-1380.21371714,0.00014878,2]
[389568825,1759722633446,-268.0,0.00014879,2]
[389568826,1759722633456,-500.0,0.00014879,2]
[389568827,1759722633467,-200.0,0.00014879,2]
[389568828,1759722633476,-2000.0,0.0001488,2]
[389568829,1759722633485,-500.0,0.0001488,2]
[389568830,1759722633495,-500.0,0.0001488,2]
[389568831,1759722633504,-500.0,0.0001488,2]
[389568832,1759722633514,-200.0,0.0001488,2]
[389568833,1759722633524,-1000.0,0.000149,2]
[389568834,1759722633536,-353.87,0.000149,2]
[389568835,1759722633545,-469.48,0.000149,2]
[389568836,1759722633555,-175.69,0.000149,2]
[389568837,1759722633564,-179.42620403,0.000149,2]
[389568838,1759722633574,-5000.0,0.000149,2]
[389568839,1759722633583,-189.45705258,0.000149,2]
[389568840,1759722633594,-400.0,0.000149,5]
[389568841,1759722633604,-1000.0,0.000149,2]
[389568842,1759722633614,-158.50130243,0.000149,2]
[389568843,1759722633623,-299.61678463,0.000149,2]
[389568844,1759722633633,-429.20175076,0.000149,2]
[389568845,1759722633642,-163.19995037,0.000149,2]
[389568846,1759722633651,-210.83704388,0.000149,2]
[389568847,1759722633661,-164.99527522,0.000149,2]
[389568848,1759722633670,-253.8571335,0.000149,2]
[389568849,1759722633679,-171.56779491,0.000149,2]
[389568850,1759722633688,-286.0,0.00014953,2]
[389568851,1759722633698,-3283.596,0.00014953,2]
[389568852,1759722633707,-280.24,0.00014953,2]
[389568853,1759722633717,-1725.26714642,0.00014954,2]
[389568854,1759722633727,-701.2412328,0.0001497,2]
[389568855,1759722633736,-500.0,0.00014973,2]
[389568856,1759722633746,-500.0,0.00014973,2]
[389568857,1759722633755,-617.11908922,0.00014973,2]
[389568858,1759722633764,-500.68404833,0.00014973,2]
[389568859,1759722633774,-500.0,0.00014973,2]
[389568860,1759722633783,-500.0,0.00014973,2]
[389568861,1759722633793,-500.92738618,0.00014973,2]
[389568862,1759722633802,-500.0,0.00014973,2]
[389568863,1759722633811,-503.36423689,0.00014973,2]
[389568864,1759722633821,-500.0,0.00014973,2]
[389568865,1759722633831,-500.59042681,0.00014973,2]
[389568866,1759722633840,-484.69709582,0.00014973,2]
[389568867,1759722633850,-500.0,0.00014973,2]
[389568868,1759722633859,-500.0,0.00014973,2]
[389568869,1759722633868,-500.0,0.00014973,2]
[389568870,1759722633878,-500.0,0.00014973,2]
[389568871,1759722633888,-500.0,0.00014973,2]
[389568872,1759722633898,-500.73776,0.00014973,2]
[389568873,1759722633907,-500.0,0.00014973,2]
[389568874,1759722633916,-579.87087567,0.00014973,2]
[389568875,1759722633926,-501.21222796,0.00014973,2]
[389568876,1759722633935,-500.79337865,0.00014973,2]
[389568877,1759722633944,-500.31995857,0.00014973,2]
[389568878,1759722633953,-500.0,0.00014973,2]
[389568879,1759722633962,-500.0,0.00014973,2]
[389568880,1759722633973,-500.0,0.00014973,2]
[389568881,1759722633986,-465.39,0.00014973,2]
[389568882,1759722633995,-1000.0,0.00014985,2]
[389568883,1759722634005,-160.56406573,0.00014986,2]
[389568884,1759722634014,-335.0,0.00014991,2]
[389568885,1759722634025,-38064.90951397,0.00014996,2]
[389568886,1759722634034,-278.11536482,0.00014997,2]
[389568887,1759722634045,-1363.58692735,0.00014997,2]
[389568888,1759722634056,-300.0,0.00014999,2]
[389568889,1759722634066,-150.79218515,0.00014999,2]
[389568890,1759722634076,-191.8800678,0.00014999,2]
[389568891,1759722634088,-243.99387068,0.00014999,2]
[389568892,1759722634099,-500.0,0.00014999,2]
[389568893,1759722634109,-436.0,0.00014999,2]
[389568894,1759722634118,-150.0,0.00014999,2]
[389568895,1759722634128,-500.0,0.00014999,2]
[389568896,1759722634138,-150.0,0.00014999,2]
[389568897,1759722634147,-150.0,0.00014999,2]
[389568898,1759722634157,-500.0,0.00014999,2]
[389568899,1759722634167,-500.0,0.00014999,2]
[389568900,1759722634176,-205.78186955,0.00014999,2]
[389568901,1759722634188,-150.0,0.00014999,2]
[389568902,1759722634199,-507.0,0.00014999,2]
[389568903,1759722634210,-150.0,0.00014999,2]
[389568904,1759722634219,-500.0,0.00014999,2]
[389568905,1759722634229,-150.0,0.00014999,2]
[389568906,1759722634239,-699.0,0.00014999,2]
[389568907,1759722634248,-150.0,0.00014999,2]
[389568908,1759722634257,-661.0,0.00014999,2]
[389568909,1759722634267,-550.0,0.00014999,2]
[389568910,1759722634276,-150.0,0.00014999,2]
[389568911,1759722634286,-2288.0,0.00014999,2]
[389568912,1759722634296,-151.50741552,0.00014999,2]
[389568913,1759722634305,-1227.0,0.00014999,2]
[389568914,1759722634314,-114972.62308002,0.00015,2]
[389568915,1759722634941,-10017.54850199,0.00015,2]
[389568916,1759722634953,-36890.83837947,0.00015,2]
[389568917,1759722634962,-388.0,0.00015,3]
[389568918,1759722634971,-18046.64379491,0.00015,2]
[389568919,1759722634986,-53465.51219478,0.00015,2]
[389568920,1759722634998,-725.60602438,0.00015,2]
[389568921,1759722635076,-19688.4910024,0.00015,2]
[389568926,1759722637974,-150.0,0.00014999,2]
[389568927,1759722637989,-150.0,0.00014999,2]
[389568928,1759722637999,-13.93125095,0.00015,2]
[389568929,1759722638131,-7301.37572389,0.00015,2]
[389568930,1759722638143,-9616.06621539,0.00015,2]
[389568931,1759722638160,-23754.03512613,0.00015,2]
[389568932,1759722638172,-2080.0,0.00015,2]
[389568933,1759722638183,-16343.97773362,0.00015,2]
[389568934,1759722638194,-347.10863827,0.00015,2]
[389569101,1759722640017,-588.77502464,0.00015,2]
[389569105,1759722640031,-6746.96716314,0.00015,2]
[389569112,1759722640073,-274.26881639,0.00015,2]
[389569125,1759722640126,-1473.93976747,0.00015,2]
[389569138,1759722640180,-1201.94238215,0.00015,2]
[389569147,1759722640235,-1754.0,0.00015,2]
[389569150,1759722640246,-864.24787903,0.00015,2]
[389569161,1759722640341,-705.86803613,0.00015,2]
[389569472,1759722643784,-1073.58995347,0.000149,2]
[389569474,1759722643793,-150.0,0.00014999,2]
[389569476,1759722643803,-150.0,0.00014999,2]
[389569478,1759722643811,-2203636.66219258,0.00015,2]
[389569480,1759722643821,-908867.14242291,0.00015,2]
[389569482,1759722643830,-24644.12212501,0.00015,2]
[389569484,1759722643840,-3600.0,0.00015,3]
[389569486,1759722643849,-1000.0,0.00015,2]
[389569488,1759722643859,-547.84811866,0.00015,2]
[389569490,1759722643869,-466890.76006088,0.00015,2]
[389569492,1759722643881,-414576.8178815,0.00015,2]
[389569494,1759722643890,-500.0,0.00015,2]
[389569496,1759722643899,-941599.25655415,0.00015,2]
[389569498,1759722643908,-3642.106508,0.00015,2]
[389569500,1759722643917,-198.34137,0.00015,2]
[389569502,1759722643926,-175.088009,0.00015,2]
[389569505,1759722643939,-158.146708,0.00015,2]
[389569507,1759722643949,-2784.101086,0.00015,2]
[389569509,1759722643958,-478.654317,0.00015,2]
[389569511,1759722643967,-150000.0,0.00015,2]
[389569513,1759722643976,-140988.73718616,0.00015,2]
[389569515,1759722643991,-200.0,0.00015,2]
[389569517,1759722644001,-151.0,0.00015,2]
[389569519,1759722644010,-151.0,0.00015,2]
[389569521,1759722644020,-151.0,0.00015,2]
[389569523,1759722644030,-152.058448,0.00015,2]
[389569525,1759722644039,-151.0,0.00015,2]
[389569527,1759722644048,-158.861645,0.00015,2]
[389569529,1759722644060,-152.174355,0.00015,2]
[389569531,1759722644069,-151.0,0.00015,2]
[389569533,1759722644078,-151.0,0.00015,2]
[389569535,1759722644088,-151.0,0.00015,2]
[389569538,1759722644097,-152.227371,0.00015,2]
[389569540,1759722644107,-152.25112,0.00015,2]
[389569542,1759722644117,-170.196523,0.00015,2]
[389569544,1759722644126,-1700.7697888,0.00015,2]
[389569546,1759722644135,-151.0,0.00015,2]
[389569548,1759722644145,-152.579665,0.00015,2]
[389569550,1759722644155,-151.0,0.00015,2]
[389569552,1759722644165,-151.0,0.00015,2]
[389569554,1759722644175,-151.0,0.00015,2]
[389569556,1759722644184,-151.896888,0.00015,2]
[389569558,1759722644195,-152.455303,0.00015,2]
[389569560,1759722644204,-151.0,0.00015,2]
[389569562,1759722644213,-151.0,0.00015,2]
[389569564,1759722644223,-151.0,0.00015,2]
[389569566,1759722644232,-152.089066,0.00015,2]
[389569568,1759722644241,-151.0,0.00015,2]
[389569570,1759722644251,-151.0,0.00015,2]
[389569572,1759722644260,-152.141036,0.00015,2]
[389569575,1759722644269,-280.454901,0.00015,2]
[389569577,1759722644278,-151.0,0.00015,2]
[389569579,1759722644287,-151.0,0.00015,2]
[389569581,1759722644296,-151.0,0.00015,2]
[389569583,1759722644305,-151.0,0.00015,2]
[389569585,1759722644314,-151.0,0.00015,2]
[389569587,1759722644323,-151.0,0.00015,2]
[389569589,1759722644333,-151.0,0.00015,2]
[389569591,1759722644342,-151.0,0.00015,2]
[389569593,1759722644351,-152.046975,0.00015,2]
[389569595,1759722644360,-151.0,0.00015,2]
[389569597,1759722644369,-151.0,0.00015,2]
[389569599,1759722644379,-151.0,0.00015,2]
[389569601,1759722644392,-152.302379,0.00015,2]
[389569604,1759722644401,-151.0,0.00015,2]
[389569606,1759722644411,-151.0,0.00015,2]
[389569608,1759722644420,-152.970339,0.00015,2]
[389569609,1759722644430,-261.0,0.00015,2]
[389569611,1759722644439,-151.0,0.00015,2]
[389569613,1759722644448,-152.724119,0.00015,2]
[389569616,1759722644458,-162.081071,0.00015,2]
[389569618,1759722644467,-151.0,0.00015,2]
[389569620,1759722644476,-151.0,0.00015,2]
[389569622,1759722644486,-211.602578,0.00015,2]
[389569624,1759722644495,-151.0,0.00015,2]
[389569626,1759722644505,-151.0,0.00015,2]
[389569628,1759722644514,-151.0,0.00015,2]
[389569630,1759722644523,-151.0,0.00015,2]
[389569632,1759722644533,-151.0,0.00015,2]
[389569634,1759722644542,-151.0,0.00015,2]
[389569636,1759722644551,-151.0,0.00015,2]
[389569638,1759722644561,-151.0,0.00015,2]
[389569640,1759722644570,-151.937856,0.00015,2]
[389569642,1759722644579,-151.517597,0.00015,2]
[389569644,1759722644588,-151.0,0.00015,2]
[389569646,1759722644597,-151.0,0.00015,2]
[389569648,1759722644606,-151.0,0.00015,2]
[389569650,1759722644616,-151.0,0.00015,2]
[389569652,1759722644625,-151.0,0.00015,2]
[389569654,1759722644634,-151.0,0.00015,2]
[389569656,1759722644643,-151.0,0.00015,2]
[389569658,1759722644652,-151.0,0.00015,2]
[389569660,1759722644662,-183.842172,0.00015,2]
[389569662,1759722644671,-151.0,0.00015,2]
[389569664,1759722644680,-151.0,0.00015,2]
[389569666,1759722644689,-151.0,0.00015,2]
[389569668,1759722644699,-151.0,0.00015,2]
[389569670,1759722644708,-151.0,0.00015,2]
[389569672,1759722644720,-151.0,0.00015,2]
[389569674,1759722644730,-151.0,0.00015,2]
[389569677,1759722644740,-256.708089,0.00015,2]
[389569679,1759722644749,-151.0,0.00015,2]
[389569681,1759722644759,-151.0,0.00015,2]
[389569683,1759722644769,-151.0,0.00015,2]
[389569685,1759722644778,-151.0,0.00015,2]
[389569687,1759722644788,-151.0,0.00015,2]
[389569689,1759722644798,-152.958091,0.00015,2]
[389569691,1759722644808,-151.0,0.00015,2]
[389569693,1759722644818,-250.790236,0.00015,2]
[389569695,1759722644827,-152.426607,0.00015,2]
[389569697,1759722644837,-179.7409162,0.00015,2]
[389569699,1759722644846,-151.0,0.00015,2]
[389569701,1759722644855,-151.0,0.00015,2]
[389569703,1759722644864,-151.0,0.00015,2]
[389569705,1759722644874,-151.0,0.00015,2]
[389569707,1759722644884,-151.0,0.00015,2]
[389569709,1759722644893,-151.0,0.00015,2]
[389569711,1759722644903,-151.0,0.00015,2]
[389569714,1759722644912,-151.0,0.00015,2]
[389569716,1759722644921,-151.0,0.00015,2]
[389569718,1759722644931,-151.0,0.00015,2]
[389569720,1759722644940,-151.0,0.00015,2]
[389569722,1759722644950,-151.0,0.00015,2]
[389569724,1759722644959,-151.0,0.00015,2]
[389569726,1759722644968,-151.0,0.00015,2]
[389569728,1759722644977,-151.0,0.00015,2]
[389569730,1759722644991,-151.0,0.00015,2]
[389569732,1759722645001,-152.101366,0.00015,2]
[389569734,1759722645010,-151.0,0.00015,2]
[389569736,1759722645019,-151.0,0.00015,2]
[389569738,1759722645030,-151.0,0.00015,2]
[389569740,1759722645041,-151.0,0.00015,2]
[389569742,1759722645050,-152.345929,0.00015,2]
[389569744,1759722645061,-151.0,0.00015,2]
[389569746,1759722645071,-151.589058,0.00015,2]
[389569748,1759722645080,-151.0,0.00015,2]
[389569750,1759722645089,-166.647639,0.00015,2]
[389569752,1759722645098,-151.0,0.00015,2]
[389569754,1759722645107,-284.446947,0.00015,2]
[389569756,1759722645117,-151.0,0.00015,2]
[389569758,1759722645126,-152.327001,0.00015,2]
[389569760,1759722645135,-151.642768,0.00015,2]
[389569762,1759722645144,-151.0,0.00015,2]
[389569764,1759722645153,-151.0,0.00015,2]
[389569766,1759722645162,-151.0,0.00015,2]
[389569768,1759722645171,-151.0,0.00015,2]
[389569770,1759722645180,-151.0,0.00015,2]
[389569772,1759722645190,-151.0,0.00015,2]
[389569774,1759722645199,-151.0,0.00015,2]
[389569776,1759722645208,-151.0,0.00015,2]
[389569778,1759722645218,-151.0,0.00015,2]
[389569780,1759722645228,-151.0,0.00015,2]
[389569782,1759722645238,-151.0,0.00015,2]
[389569784,1759722645248,-151.0,0.00015,2]
[389569786,1759722645258,-161.274992,0.00015,2]
[389569788,1759722645268,-152.655474,0.00015,2]
[389569790,1759722645278,-151.0,0.00015,2]
[389569792,1759722645287,-153.094738,0.00015,2]
[389569794,1759722645296,-151.637869,0.00015,2]
[389569796,1759722645305,-151.561465,0.00015,2]
[389569798,1759722645314,-151.0,0.00015,2]
[389569800,1759722645324,-151.0,0.00015,2]
[389569802,1759722645333,-151.0,0.00015,2]
[389569804,1759722645343,-152.651808,0.00015,2]
[389569807,1759722645352,-151.0,0.00015,2]
[389569809,1759722645361,-151.0,0.00015,2]
[389569810,1759722645370,-151.0,0.00015,2]
[389569812,1759722645380,-151.0,0.00015,2]
[389569814,1759722645389,-151.0,0.00015,2]
[389569817,1759722645399,-152.738165,0.00015,2]
[389569819,1759722645408,-151.0,0.00015,2]
[389569820,1759722645418,-151.0,0.00015,2]
[389569823,1759722645427,-151.897617,0.00015,2]
[389569824,1759722645436,-151.0,0.00015,2]
[389569827,1759722645446,-156.258459,0.00015,2]
[389569829,1759722645455,-187.231112,0.00015,2]
[389569831,1759722645464,-187.231112,0.00015,2]
[389569833,1759722645473,-187.231112,0.00015,2]
[389569835,1759722645482,-187.231112,0.00015,2]
[389569836,1759722645491,-187.231112,0.00015,2]
[389569838,1759722645501,-187.231112,0.00015,2]
[389569841,1759722645511,-187.231112,0.00015,2]
[389569843,1759722645520,-187.231112,0.00015,2]
[389569845,1759722645529,-187.231112,0.00015,2]
[389569846,1759722645539,-187.231112,0.00015,2]
[389569848,1759722645549,-187.231112,0.00015,2]
[389569851,1759722645559,-187.231112,0.00015,2]
[389569853,1759722645568,-187.231112,0.00015,2]
[389569855,1759722645577,-187.231112,0.00015,2]
[389569856,1759722645586,-187.231112,0.00015,2]
[389569858,1759722645594,-187.231112,0.00015,2]
[389569860,1759722645603,-151.0,0.00015,2]
[389569862,1759722645613,-151.0,0.00015,2]
[389569864,1759722645622,-151.0,0.00015,2]
[389569866,1759722645631,-151.0,0.00015,2]
[389569868,1759722645640,-151.0,0.00015,2]
[389569870,1759722645649,-151.0,0.00015,2]
[389569872,1759722645658,-155.048235,0.00015,2]
[389569874,1759722645667,-151.0,0.00015,2]
[389569876,1759722645677,-151.0,0.00015,2]
[389569878,1759722645686,-196.661725,0.00015,2]
[389569880,1759722645695,-152.479047,0.00015,2]
[389569882,1759722645704,-151.00000047,0.00015,2]
[389569884,1759722645714,-154.753591,0.00015,2]
[389569887,1759722645724,-152.988726,0.00015,2]
[389569888,1759722645733,-151.143283,0.00015,2]
[389569890,1759722645742,-151.0,0.00015,2]
[389569892,1759722645751,-151.0,0.00015,2]
[389569894,1759722645761,-152.976685,0.00015,2]
[389569896,1759722645771,-151.0,0.00015,2]
[389569898,1759722645780,-151.0,0.00015,2]
[389569900,1759722645794,-151.0,0.00015,2]
[389569903,1759722645809,-151.0,0.00015,2]
[389569905,1759722645824,-151.0,0.00015,2]
[389569908,1759722645837,-152.824489,0.00015,2]
[389569910,1759722645848,-151.0,0.00015,2]
[389569912,1759722645860,-151.0,0.00015,2]
[389569915,1759722645873,-151.0,0.00015,2]
[389569917,1759722645887,-151.0,0.00015,2]
[389569919,1759722645899,-151.0,0.00015,2]
[389569922,1759722645912,-151.0,0.00015,2]
[389569924,1759722645924,-151.0,0.00015,2]
[389569926,1759722645936,-151.0,0.00015,2]
[389569929,1759722645948,-151.0,0.00015,2]
[389569931,1759722645958,-290.597181,0.00015,2]
[389569933,1759722645970,-151.181068,0.00015,2]
[389569935,1759722645987,-151.788321,0.00015,2]
[389569937,1759722645999,-151.0,0.00015,2]
[389569940,1759722646012,-153.025732,0.00015,2]
[389569942,1759722646024,-287.05153,0.00015,2]
[389569945,1759722646037,-151.0,0.00015,2]
[389569947,1759722646050,-153.831601,0.00015,2]
[389569949,1759722646063,-151.0,0.00015,2]
[389569951,1759722646075,-151.0,0.00015,2]
[389569954,1759722646088,-151.0,0.00015,2]
[389569956,1759722646099,-151.0,0.00015,2]
[389569959,1759722646113,-151.0,0.00015,2]
[389569961,1759722646125,-151.0,0.00015,2]
[389569963,1759722646138,-151.0,0.00015,2]
[389569966,1759722646149,-151.0,0.00015,2]
[389569968,1759722646162,-151.0,0.00015,2]
[389569971,1759722646175,-151.0,0.00015,2]
[389569973,1759722646191,-151.0,0.00015,2]
[389569975,1759722646203,-151.0,0.00015,2]
[389569978,1759722646216,-151.0,0.00015,2]
[389569980,1759722646228,-151.0,0.00015,2]
[389569982,1759722646238,-151.0,0.00015,2]
[389569984,1759722646248,-151.0,0.00015,2]
[389569987,1759722646259,-197.725181,0.00015,2]
[389569989,1759722646272,-151.0,0.00015,2]
[389569992,1759722646286,-151.0,0.00015,2]
[389569994,1759722646296,-151.0,0.00015,2]
[389569996,1759722646306,-151.0,0.00015,2]
[389569998,1759722646318,-276.003107,0.00015,2]
[389570000,1759722646328,-151.0,0.00015,2]
[389570002,1759722646341,-151.0,0.00015,2]
[389570005,1759722646354,-154.461871,0.00015,2]
[389570007,1759722646367,-151.0,0.00015,2]
[389570010,1759722646378,-151.0,0.00015,2]
[389570012,1759722646389,-151.0,0.00015,2]
[389570014,1759722646399,-152.038231,0.00015,2]
[389570016,1759722646410,-151.0,0.00015,2]
[389570017,1759722646421,-151.0,0.00015,2]
[389570018,1759722646431,-151.0,0.00015,2]
[389570019,1759722646443,-151.0,0.00015,2]
[389570020,1759722646453,-152.464213,0.00015,2]
[389570021,1759722646465,-151.0,0.00015,2]
[389570022,1759722646475,-165.463239,0.00015,2]
[389570023,1759722646486,-151.0,0.00015,2]
[389570024,1759722646497,-152.785305,0.00015,2]
[389570025,1759722646515,-151.0,0.00015,2]
[389570026,1759722646526,-151.0,0.00015,2]
[389570027,1759722646538,-151.0,0.00015,2]
[389570029,1759722646549,-151.0,0.00015,2]
[389570030,1759722646560,-151.0,0.00015,2]
[389570032,1759722646571,-151.0,0.00015,2]
[389570035,1759722646582,-151.0,0.00015,2]
[389570037,1759722646593,-151.0,0.00015,2]
[389570039,1759722646603,-151.0,0.00015,2]
[389570041,1759722646615,-151.0,0.00015,2]
[389570044,1759722646626,-151.0,0.00015,2]
[389570046,1759722646638,-218.800582,0.00015,2]
[389570048,1759722646649,-151.0,0.00015,2]
[389570050,1759722646660,-151.0,0.00015,2]
[389570053,1759722646671,-151.0,0.00015,2]
[389570055,1759722646683,-151.0,0.00015,2]
[389570057,1759722646694,-155.975524,0.00015,2]
[389570059,1759722646705,-151.0,0.00015,2]
[389570061,1759722646716,-151.0,0.00015,2]
[389570064,1759722646727,-152.262871,0.00015,2]
[389570066,1759722646738,-151.0,0.00015,2]
[389570068,1759722646749,-151.0,0.00015,2]
[389570070,1759722646760,-151.0,0.00015,2]
[389570072,1759722646771,-151.0,0.00015,2]
[389570075,1759722646782,-151.0,0.00015,2]
[389570077,1759722646793,-151.0,0.00015,2]
[389570079,1759722646804,-152.134915,0.00015,2]
[389570081,1759722646816,-151.0,0.00015,2]
[389570084,1759722646827,-151.0,0.00015,2]
[389570086,1759722646838,-151.0,0.00015,2]